Cogmind - Beta 13 @@@ ROGUE MODE // 2024.07.16 @ 15:15:25 Player: Cash Money Result: Destroyed by H-88 Terminator with Heavy Machine Gun Performance ------------- Evolutions (8) 4000 Regions Visited (13) 2600 Robots Destroyed (58) 290 Value Destroyed (1870) 1870 Prototype IDs (11) 220 Alien Tech Used (0) 0 Bonus (505) 505 TOTAL SCORE: 9485 Bonus ------- High Alert Combat Kills 197 Follower Combat Kills 308 Cogmind --------- Core Integrity 0/1450 Matter 190/300 Energy 100/100 System Corruption 4% Temperature Cool (0) Movement Hovering (70) Location -2/Research Parts ------- > --- POWER (3) -------- (None) > --- PROPULSION (9) --- Gyrokinetic Inverter > --- UTILITY (8) ------ Hacking Suite > --- WEAPON (3) ------- (None) > --- INVENTORY (5) ---- Improved Antigrav System Improved Gyrokinetic Inverter Antigrav Array Peak State ------------ > --- POWER ------------ Micro Antimatter Reactor Micro Antimatter Reactor > --- PROPULSION ------- Biometal Leg Cooled VTOL Module Cooled VTOL Module Cooled VTOL Module Nuclear Pulse Array Q-thruster Q-thruster > --- UTILITY ---------- Advanced Power Amplifier Advanced Sensor Array Heavy Reflective Plating System Shield System Shield Makeshift System Shield Advanced System Shield > --- WEAPON ----------- Katana Great Axe > --- INVENTORY -------- Gyrokinetic Inverter Improved Antigrav System Improved Gyrokinetic Inverter Antigrav Array [Rating: 115] Favorites ----------- Power Micro Nuclear Core Engine Ion Engine Power Core Micro Nuclear Core Reactor Micro Antimatter Reactor Propulsion Cooled VTOL Module Treads Improved Medium Treads Leg Aluminum Leg Hover Unit Hover Unit Flight Unit Cooled VTOL Module Utility System Shield Device Improved Heat Sink Storage Small Storage Unit Processor Improved Targeting Computer Hackware System Shield Protection Improved Light Armor Plating Weapon Improved Assault Rifle Energy Gun Wave Gun Energy Cannon Advanced Plasma Cannon Ballistic Gun Improved Assault Rifle Ballistic Cannon Bore Cannon Launcher Heavy Rocket Launcher Slashing Weapon Katana Build | -11 -10 -9 -9 -8 -7 -6 -5 -5 -5 -4 -4 -3 -2 ------- Run | Yrd Mat Mat Sto Mat Fac Fac Fac Upp Upp Fac Ext Res Res Slots Evolved 16 | . . 2 . 2 2 2 2 . . 2 . 2 2 Power 2 | . . . . . 1 . . . . . . 1 . Propulsion 7 | . . 1 . 1 1 1 . . . 2 . . 1 Utility 6 | . . 1 . 1 . 1 2 . . . . . 1 Weapon 1 | . . . . . . . . . . . . 1 . Parts Attached 129 | 6 11 2 12 9 23 9 9 4 2 8 10 17 7 Power 14 | 1 1 . 1 2 3 . 1 1 . 1 1 2 . Engine 6 | 1 1 . 1 1 . . . . . 1 1 . . Core 6 | . . . . 1 3 . 1 1 . . . . . Reactor 2 | . . . . . . . . . . . . 2 . Propulsion 40 | 2 . 1 4 4 8 4 4 . . 1 5 3 4 Treads 5 | . . . . . . 2 . . . . 2 . 1 Leg 9 | 2 . 1 . . 3 . . . . . 2 1 . Wheel . | . . . . . . . . . . . . . . Hover 5 | . . . 3 . . . . . . . . 1 1 Flight 21 | . . . 1 4 5 2 4 . . 1 1 1 2 Utility 39 | 1 1 1 1 2 6 5 2 2 1 3 2 9 3 Device 20 | . 1 . 1 . 2 3 1 . 1 2 2 6 1 Storage 1 | 1 . . . . . . . . . . . . . Processor 8 | . . 1 . 1 3 . . 1 . . . 2 . Hackware 6 | . . . . . 1 1 1 1 . . . 1 1 Protection 4 | . . . . 1 . 1 . . . 1 . . 1 Artifact . | . . . . . . . . . . . . . . Weapon 36 | 2 9 . 6 1 6 . 2 1 1 3 2 3 . Energy Gun 5 | 1 1 . . . . . . . 1 2 . . . Energy Cannon 2 | . . . . . . . . . . 1 . 1 . Ballistic Gun 20 | 1 5 . 5 1 4 . 2 . . . 2 . . Ballistic Cannon 1 | . . . . . . . . 1 . . . . . Launcher 6 | . 3 . 1 . 2 . . . . . . . . Special Weapon . | . . . . . . . . . . . . . . Impact Weapon . | . . . . . . . . . . . . . . Slashing Weapon 2 | . . . . . . . . . . . . 2 . Piercing Weapon . | . . . . . . . . . . . . . . Special Melee Weapon . | . . . . . . . . . . . . . . Unidentified Prototypes 6 | . 1 . . 1 1 . . . . . . 3 . Parts Lost 59 | . 1 . 4 . 9 2 1 3 5 5 9 1 19 Power 7 | . . . . . 2 . . 1 1 2 . . 1 Propulsion 23 | . . . 3 . 1 2 1 . 1 2 4 1 8 Utility 20 | . . . 1 . 3 . . 2 2 1 3 . 8 Weapon 9 | . 1 . . . 3 . . . 1 . 2 . 2 Highest Loss Streak 19 | . 1 . 2 . 3 2 1 2 5 5 9 1 19 To Critical Strikes 1 | . . . . . . . . . . . . . 1 Average Slot Usage (%) 85 | . 98 100 93 87 88 98 91 94 97 68 64 65 59 Engine 4 | . 14 11 11 8 1 . . . . . . 1 . Core 4 | . . . . . 7 13 11 9 10 4 . . . Treads 2 | . . . . . . 9 5 5 4 . 5 3 . Leg 7 | . 28 33 15 . 3 . . . . . 3 1 3 Flight 19 | . . . 1 32 33 28 26 29 29 24 15 16 19 Device 10 | . 13 11 10 1 1 13 17 11 13 19 15 7 5 Storage 3 | . 14 11 11 9 1 . . . . . . . . Processor 4 | . . 11 11 11 12 3 . 3 2 . . 3 . Hackware 9 | . . . . . 5 10 11 21 22 15 15 19 13 Protection 1 | . . . . 3 3 4 5 . . . 4 . 2 Ballistic Gun 9 | . 23 22 19 18 12 6 5 5 4 . 1 . . Launcher 1 | . . . 1 . 1 6 4 . . . . . . Naked Turns . | . . . . . . . . . . . . . . Heaviest Build 41 | 13 17 17 17 17 22 27 28 26 27 23 19 26 41 Greatest Support 44 | 20 20 30 30 24 28 30 28 26 28 26 20 28 44 Greatest Overweight (x) 4 | . . . 4 1 . . 1 . . . 1 . . Average Overweight (x) . | . . . . . . . . . . . . . . Largest Inventory Capacity 8 | 8 8 8 8 8 8 5 5 5 5 5 5 5 5 Average Capacity 6 | 6 8 8 8 8 5 5 5 5 5 5 5 5 5 Most Carried 8 | . 8 7 7 8 7 5 5 4 3 5 5 5 5 Average Carried 4 | . 4 6 5 7 5 4 4 3 3 3 4 4 4 Final Capacity 8 | 8 8 8 8 8 5 5 5 5 5 5 5 5 5 Final Carried 8 | . 8 6 5 8 5 3 4 3 3 5 4 5 4 Class Distribution -------------------- 40% | Hacker-Mutant 28% | Mutant 13% | Hacker-Sprinter 12% | Sprinter 4% | Scavenger-Mutant Dominant Class ---------------- Mutant | -10/Materials Mutant | -9/Materials Scavenger-Mutant | -9/Storage Sprinter | -8/Materials Mutant | -7/Factory Hacker-Mutant | -6/Factory Hacker-Mutant | -5/Factory Hacker-Mutant | -5/Upper Caves Hacker-Mutant | -5/Upper Caves Hacker-Sprinter | -4/Factory Hacker-Mutant | -4/Extension Hacker-Mutant | -3/Research Hacker-Sprinter | -2/Research Resources | -11 -10 -9 -9 -8 -7 -6 -5 -5 -5 -4 -4 -3 -2 ----------- Run | Yrd Mat Mat Sto Mat Fac Fac Fac Upp Upp Fac Ext Res Res Matter Collected 2421 | 260 173 60 329 394 497 135 . 358 70 19 96 10 20 Remotely . | . . . . . . . . . . . . . . Salvage Created 1998 | . 383 112 392 356 434 119 85 . . 117 . . . Parts 130 | . 35 9 27 21 26 4 3 . . 5 . . . Haulers Intercepted 6 | . . . 3 1 . 1 1 . . . . . . Recyclers Shooed . | . . . . . . . . . . . . . . Parts Field Recycled . | . . . . . . . . . . . . . . Retrieved Matter . | . . . . . . . . . . . . . . Parts Self-Destructed . | . . . . . . . . . . . . . . Prevented 2 | . . . . . . . . 2 . . . . . Kills | -11 -10 -9 -9 -8 -7 -6 -5 -5 -5 -4 -4 -3 -2 ------- Run | Yrd Mat Mat Sto Mat Fac Fac Fac Upp Upp Fac Ext Res Res Combat Hostiles Destroyed 44 | . 11 2 6 10 11 2 . . . 2 . . . Guns 33 | . 6 2 5 10 10 . . . . . . . . AOE 11 | . 5 . 1 . 1 2 . . . 2 . . . Classes Destroyed 12 | . 7 1 1 . 3 . . . . . . . . Worker 1 | . 1 . . . . . . . . . . . . Builder 1 | . 1 . . . . . . . . . . . . Hauler 6 | . . . 3 1 . 1 1 . . . . . . Recycler 1 | . 1 . . . . . . . . . . . . Operator 1 | . . . . . 1 . . . . . . . . Watcher 4 | . 1 . 2 1 . . . . . . . . . Swarmer 19 | . 6 . 3 6 4 . . . . . . . . Grunt 10 | . 4 . . . 4 2 . . . . . . . Sentry 10 | . . 2 3 4 1 . . . . . . . . Hunter 3 | . . . . . 1 . . . . 2 . . . Programmer 1 | . . . . . 1 . . . . . . . . Subdweller 1 | . 1 . . . . . . . . . . . . Best Kill Streak 8 | . 4 2 5 8 8 3 1 . . 2 . . . Combat Bots Only 8 | . 3 2 3 7 8 2 . . . 2 . . . Max Kills in Single Turn 2 | . 2 1 1 2 1 1 1 . . 2 . . . Gunslinging . | . . . . . . . . . . . . . . Exploded 2 | . 2 . 1 . 1 1 . . . 2 . . . Melee . | . . . . . . . . . . . . . . Uniques/NPCs Destroyed . | . . . . . . . . . . . . . . Combat | -11 -10 -9 -9 -8 -7 -6 -5 -5 -5 -4 -4 -3 -2 -------- Run | Yrd Mat Mat Sto Mat Fac Fac Fac Upp Upp Fac Ext Res Res Hostile Shots Fired 843 | . 52 8 24 36 175 21 8 70 22 59 73 18 277 Missed 400 | . 20 1 3 15 83 13 2 37 12 36 42 9 127 Damage Taken 8191 | . 346 109 352 230 1097 250 142 602 242 531 866 189 3235 Core 2328 | . 82 . 49 25 169 12 . 175 69 141 105 38 1463 Absorbed by Shields 67 | . . . . . 18 . . . . . 49 . . Redirected to Shielding 49 | . . . . . . . . . . . 49 . . Ignored by Resistances 69 | . . . . . . . . . . . . . 69 Regen/Repaired (Parts) 167 | . . . . . . . 97 . . 47 . 23 . Core Remaining (%) 85 | 100 67 . 87 95 75 98 . . 75 . 78 97 . Volleys Fired 185 | . 27 5 33 22 44 12 16 21 1 4 . . . Largest 2 | . 2 2 2 2 2 2 1 1 1 2 . . . Hottest 179 | . 60 46 53 48 48 62 39 57 81 179 . . . Shots Fired 306 | . 53 10 60 44 78 15 16 21 1 8 . . . Gun 267 | . 50 10 53 44 75 3 12 12 1 7 . . . Cannon 10 | . . . . . . . . 9 . 1 . . . Launcher 29 | . 3 . 7 . 3 12 4 . . . . . . Special . | . . . . . . . . . . . . . . Kinetic 257 | . 39 10 53 44 75 3 12 21 . . . . . Thermal 9 | . . . . . . . . . 1 8 . . . Explosive 29 | . 3 . 7 . 3 12 4 . . . . . . Electromagnetic 11 | . 11 . . . . . . . . . . . . Robot Hit Streak 12 | . 7 4 11 10 12 5 9 12 . 2 . . . Robot Miss Streak 8 | . 8 1 4 3 4 1 1 1 . 1 . . . Penetration Max . | . . . . . . . . . . . . . . Secondary Targets 8 | . 1 . 1 2 4 . . . . . . . . Max Gunslinging Chain 1 | . 1 . 1 1 1 . . . . . . . . Shots Hit Robots 184 | . 23 7 33 34 57 5 11 10 . 4 . . . Core Hits 98 | . 18 4 15 17 29 9 3 1 . 2 . . . Critical Kills . | . . . . . . . . . . . . . . Critical Parts Destroyed 1 | . . . . . 1 . . . . . . . . Critical Strikes 1 | . . . . . 1 . . . . . . . . Destroy 1 | . . . . . 1 . . . . . . . . Melee Attacks . | . . . . . . . . . . . . . . Impact . | . . . . . . . . . . . . . . Slashing . | . . . . . . . . . . . . . . Piercing . | . . . . . . . . . . . . . . Sneak Attacks . | . . . . . . . . . . . . . . Combat Hostiles . | . . . . . . . . . . . . . . Follow-up Attacks . | . . . . . . . . . . . . . . Damage Inflicted 3799 | . 545 100 561 578 1054 327 167 176 . 291 . . . Guns 2816 | . 206 100 487 578 959 35 167 176 . 108 . . . Cannons . | . . . . . . . . . . . . . . Explosions 983 | . 339 . 74 . 95 292 . . . 183 . . . Melee . | . . . . . . . . . . . . . . Ramming . | . . . . . . . . . . . . . . Kinetic 2666 | . 164 100 487 578 959 35 167 176 . . . . . Thermal 578 | . 211 . . . 76 . . . . 291 . . . Explosive 513 | . 128 . 74 . 19 292 . . . . . . . Electromagnetic 42 | . 42 . . . . . . . . . . . . Impact . | . . . . . . . . . . . . . . Slashing . | . . . . . . . . . . . . . . Piercing . | . . . . . . . . . . . . . . Highest Corruption 7 | . . . . . 4 7 . 3 3 1 2 . 4 Average Corruption 2 | . . . . . 3 7 . 2 3 1 1 . 2 Corruption Purged . | . . . . . . . . . . . . . . Corruption Blocked . | . . . . . . . . . . . . . . Effects 14 | . . . . . 5 . . 1 2 . 4 . 2 Message Errors 4 | . . . . . . . . . . . 2 . 2 Matter Fused 3 | . . . . . 2 . . 1 . . . . . Heat Flow Errors 1 | . . . . . . . . . 1 . . . . Energy Discharges 2 | . . . . . 1 . . . . . 1 . . Data Loss (minor) 3 | . . . . . 2 . . . . . 1 . . Alerts 1 | . . . . . . . . . 1 . . . . Overload Shots . | . . . . . . . . . . . . . . Overflow Damage 108 | . 92 . 16 . . . . . . . . . . Projectiles . | . . . . . . . . . . . . . . Explosions 108 | . 92 . 16 . . . . . . . . . . Melee . | . . . . . . . . . . . . . . Knockbacks . | . . . . . . . . . . . . . . Impact . | . . . . . . . . . . . . . . Kinetic . | . . . . . . . . . . . . . . Secondary . | . . . . . . . . . . . . . . Self-Inflicted Damage 225 | . 51 . 92 . . 25 . . . 57 . . . Shots 7 | . 2 . 3 . . 1 . . . 1 . . . Rammed . | . . . . . . . . . . . . . . Targets Rammed . | . . . . . . . . . . . . . . Kicked . | . . . . . . . . . . . . . . Crushed . | . . . . . . . . . . . . . . Highest Temperature 254 | . 40 1 1 7 229 31 . . 254 101 . . 52 Average Temperature 37 | . 15 1 1 2 62 5 . . 131 45 . . 22 Received Heat Transfer 987 | . 12 36 75 18 186 27 27 48 54 78 72 30 324 Siege Activations . | . . . . . . . . . . . . . . Robots Corrupted . | . . . . . . . . . . . . . . Combat Hostiles . | . . . . . . . . . . . . . . Parts Fried . | . . . . . . . . . . . . . . Impact Corruptions . | . . . . . . . . . . . . . . Robots Melted . | . . . . . . . . . . . . . . Combat Hostiles . | . . . . . . . . . . . . . . Parts Melted . | . . . . . . . . . . . . . . Heat Transferred 548 | . 250 . . . 50 . . . . 248 . . . Parts Sabotaged . | . . . . . . . . . . . . . . Parts Stolen . | . . . . . . . . . . . . . . Parts Stripped . | . . . . . . . . . . . . . . Power Chain Reactions 1 | . 1 . . . . . . . . . . . . Alert | -11 -10 -9 -9 -8 -7 -6 -5 -5 -5 -4 -4 -3 -2 ------- Run | Yrd Mat Mat Sto Mat Fac Fac Fac Upp Upp Fac Ext Res Res Peak Influence 798 | . 215 82 339 543 798 524 274 . . 457 402 196 440 Initial 390 | . . 4 34 143 246 390 163 . . 98 137 121 45 Average 246 | . 87 38 161 237 573 436 182 . . 286 253 131 132 Maximum Alert Level 3 | . 1 . 1 2 3 2 1 . . 2 2 . 2 Low Security (%) 58 | 100 91 100 65 63 . . 86 . . 41 47 100 82 Level 1 17 | . 8 . 34 20 16 40 13 . . 18 34 . 15 Level 2 20 | . . . . 16 58 59 . . . 40 17 . 1 Level 3 3 | . . . . . 24 . . . . . . . . Level 4 . | . . . . . . . . . . . . . . Level 5 . | . . . . . . . . . . . . . . High Security . | . . . . . . . . . . . . . . Max Security . | . . . . . . . . . . . . . . Squads Dispatched 20 | . 1 . . 1 9 2 . . 1 2 . 1 3 Investigation 8 | . 1 . . 1 5 1 . . . . . . . Extermination 3 | . . . . . 1 . . . . 1 . . 1 Reinforcement 5 | . . . . . 1 1 . . . . . 1 2 Assault 3 | . . . . . 1 . . . 1 1 . . . Garrison 1 | . . . . . 1 . . . . . . . . Intercept . | . . . . . . . . . . . . . . Searches Triggered . | . . . . . . . . . . . . . . Construction Impeded 1 | . . . . . . 1 . . . . . . . Haulers Reinforced . | . . . . . . . . . . . . . . Active Scanning Responses . | . . . . . . . . . . . . . . Cargo Convoy Interrupts . | . . . . . . . . . . . . . . Stealth | -11 -10 -9 -9 -8 -7 -6 -5 -5 -5 -4 -4 -3 -2 --------- Run | Yrd Mat Mat Sto Mat Fac Fac Fac Upp Upp Fac Ext Res Res Distress Signals 6 | . . . 1 1 1 . . . . . . 2 1 Communications Jammed . | . . . . . . . . . . . . . . Distress Signals . | . . . . . . . . . . . . . . Times Spotted 187 | . 16 2 11 13 28 5 1 9 12 19 15 12 44 Peak Tracking Total 22 | . 3 1 3 5 8 2 1 4 12 14 6 5 22 Tactical Retreats 36 | . 1 . . 1 6 1 . 7 . 5 1 4 10 Traps | -11 -10 -9 -9 -8 -7 -6 -5 -5 -5 -4 -4 -3 -2 ------- Run | Yrd Mat Mat Sto Mat Fac Fac Fac Upp Upp Fac Ext Res Res Traps Triggered 11 | . 1 . 2 1 2 4 . . . . 1 . . Indirectly . | . . . . . . . . . . . . . . Trap Hack Attempts . | . . . . . . . . . . . . . . Triggered . | . . . . . . . . . . . . . . Disarmed . | . . . . . . . . . . . . . . Reprogrammed . | . . . . . . . . . . . . . . Reused . | . . . . . . . . . . . . . . Traps Extracted . | . . . . . . . . . . . . . . Installed . | . . . . . . . . . . . . . . Triggered 2 | . . . . . . . . 2 . . . . . Machines | -11 -10 -9 -9 -8 -7 -6 -5 -5 -5 -4 -4 -3 -2 ---------- Run | Yrd Mat Mat Sto Mat Fac Fac Fac Upp Upp Fac Ext Res Res Machines Disabled 17 | . 2 . 1 1 6 . 1 . . 6 . . . Max in Single Turn 6 | . 2 . 1 1 5 . 1 . . 6 . . . Garrison Access 2 | . . . . . 1 . . . . 1 . . . Machines Repaired . | . . . . . . . . . . . . . . Machines Dismantled . | . . . . . . . . . . . . . . Machines Sabotaged . | . . . . . . . . . . . . . . Overloaded Fab Kills . | . . . . . . . . . . . . . . Hacking | -11 -10 -9 -9 -8 -7 -6 -5 -5 -5 -4 -4 -3 -2 --------- Run | Yrd Mat Mat Sto Mat Fac Fac Fac Upp Upp Fac Ext Res Res Machines Accessed 49 | . 7 1 5 3 9 7 2 . . 4 7 3 1 Terminals 41 | . 7 . 5 2 8 7 1 . . 2 7 1 1 Fabricators . | . . . . . . . . . . . . . . Repair Stations 4 | . . . . . 1 . 1 . . 1 . 1 . Recycling Units 1 | . . . . 1 . . . . . . . . . Scanalyzers 1 | . . 1 . . . . . . . . . . . Garrison Access 2 | . . . . . . . . . . 1 . 1 . Total Hacks 150 | . 23 2 20 6 27 28 7 . . 14 12 7 4 Successful 63 | . 13 2 10 3 6 8 5 . . 6 7 3 . Failed 87 | . 10 . 10 3 21 20 2 . . 8 5 4 4 Catastrophic 21 | . 4 . 1 . 6 4 1 . . 1 2 1 1 Database Lockouts . | . . . . . . . . . . . . . . Manual 95 | . 13 1 13 5 23 26 1 . . 5 . 4 4 Terminals 127 | . 23 . 20 5 24 28 1 . . 6 12 4 4 Fabricators . | . . . . . . . . . . . . . . Repair Stations 16 | . . . . . 3 . 6 . . 5 . 2 . Recycling Units 1 | . . . . 1 . . . . . . . . . Scanalyzers 2 | . . 2 . . . . . . . . . . . Garrison Access 4 | . . . . . . . . . . 3 . 1 . Terminal Hacks 26 | . 8 . 6 . 2 2 . . . 1 7 . . Robot Analysis 1 | . . . 1 . . . . . . . . . . Prototype ID Bank 3 | . 2 . 1 . . . . . . . . . . Open Door 7 | . . . . . . . . . . . 7 . . Open DSF 2 | . . . . . 1 1 . . . . . . . Level Access Points 4 | . 1 . 1 . 1 1 . . . . . . . Branch Access Points 1 | . . . . . . . . . . 1 . . . Emergency Access Points 1 | . . . 1 . . . . . . . . . . Alert Level 1 | . . . 1 . . . . . . . . . . Unreport Threat 4 | . 4 . . . . . . . . . . . . Locate Traps 1 | . 1 . . . . . . . . . . . . Zone Layout 1 | . . . 1 . . . . . . . . . . Fabricator Hacks . | . . . . . . . . . . . . . . Repair Station Hacks 11 | . . . . . 1 . 5 . . 3 . 2 . Scan Component 7 | . . . . . 1 . 3 . . 2 . 1 . Repair 4 | . . . . . . . 2 . . 1 . 1 . Recycling Unit Hacks 1 | . . . . 1 . . . . . . . . . Report Inventory 1 | . . . . 1 . . . . . . . . . Scanalyzer 2 | . . 2 . . . . . . . . . . . Insert Component 1 | . . 1 . . . . . . . . . . . Analyze 1 | . . 1 . . . . . . . . . . . Garrison Access Hacks 1 | . . . . . . . . . . 1 . . . Seal Access 1 | . . . . . . . . . . 1 . . . Unauthorized Hacks 22 | . 5 . 4 2 3 6 . . . 1 . 1 . Terminals 22 | . 5 . 4 2 3 6 . . . 1 . 1 . Botnet 22 | . 5 . 4 2 3 6 . . . 1 . 1 . Fabricators . | . . . . . . . . . . . . . . Repair Stations . | . . . . . . . . . . . . . . Recycling Units . | . . . . . . . . . . . . . . Scanalyzers . | . . . . . . . . . . . . . . Garrison Access . | . . . . . . . . . . . . . . Data Cores Recovered . | . . . . . . . . . . . . . . Used . | . . . . . . . . . . . . . . Hacking Detections 38 | . 7 . 5 3 8 6 2 . . 2 2 2 1 Full Trace Events 7 | . 1 . . . 5 1 . . . . . . . Feedback Events . | . . . . . . . . . . . . . . Feedback Blocked 1 | . . . . . . 1 . . . . . . . Robot Schematics Acquired . | . . . . . . . . . . . . . . Robots Built . | . . . . . . . . . . . . . . Authchips . | . . . . . . . . . . . . . . Time . | . . . . . . . . . . . . . . Total Robot Build Rating . | . . . . . . . . . . . . . . Part Schematics Acquired 1 | . . 1 . . . . . . . . . . . Parts Built . | . . . . . . . . . . . . . . Authchips . | . . . . . . . . . . . . . . Time . | . . . . . . . . . . . . . . Total Part Build Rating . | . . . . . . . . . . . . . . Parts Repaired 4 | . . . . . . . 2 . . 1 . 1 . Time 271 | . . . . . . . 158 . . 88 . 25 . Parts Recycled . | . . . . . . . . . . . . . . Recycled Matter . | . . . . . . . . . . . . . . Retrieved Matter . | . . . . . . . . . . . . . . Retrieved Components . | . . . . . . . . . . . . . . Parts Scanalyzed 1 | . . 1 . . . . . . . . . . . Part Schematics Acquired 1 | . . 1 . . . . . . . . . . . Parts Damaged . | . . . . . . . . . . . . . . Bothacking | -11 -10 -9 -9 -8 -7 -6 -5 -5 -5 -4 -4 -3 -2 ------------ Run | Yrd Mat Mat Sto Mat Fac Fac Fac Upp Upp Fac Ext Res Res Used RIF Installer . | . . . . . . . . . . . . . . Robots Hacked . | . . . . . . . . . . . . . . Non-combat . | . . . . . . . . . . . . . . Combat . | . . . . . . . . . . . . . . Robot Hacks Applied . | . . . . . . . . . . . . . . Relay Couplers Released 1 | . . . . . 1 . . . . . . . . Machine Destruction 1 | . . . . . 1 . . . . . . . . Fabnet Peak Effective % . | . . . . . . . . . . . . . . Robots Rewired 4 | . . . . . . . . . . . 4 . . Allies Hacked . | . . . . . . . . . . . . . . Hacks Repelled . | . . . . . . . . . . . . . . Allies | -11 -10 -9 -9 -8 -7 -6 -5 -5 -5 -4 -4 -3 -2 -------- Run | Yrd Mat Mat Sto Mat Fac Fac Fac Upp Upp Fac Ext Res Res Total Allies 13 | . . . . . . . . . . . 13 . . Largest Group 11 | . . . . . . . . . . . 11 . . Highest-Rated Group 585 | . . . . . . . . . . . 585 . . Highest-Rated Ally 159 | . . . . . . . . . . . 159 . . Total Orders 2 | . . . . . . . . . . . 2 . . ROAM 1 | . . . . . . . . . . . 1 . . FOLLOW 1 | . . . . . . . . . . . 1 . . Ally Attacks 55 | . . . . . . . . . . . 55 . . Total Damage 1672 | . . . . . . . . . . . 1672 . . Kills 7 | . . . . . . . . . . . 7 . . Allies Corrupted . | . . . . . . . . . . . . . . Allies Melted . | . . . . . . . . . . . . . . Intel | -11 -10 -9 -9 -8 -7 -6 -5 -5 -5 -4 -4 -3 -2 ------- Run | Yrd Mat Mat Sto Mat Fac Fac Fac Upp Upp Fac Ext Res Res Robot Analysis Total 1 | . . . 1 . . . . . . . . . . Derelict Logs Recovered 2 | . . . . . . . . . 2 . . . . Drone Launches . | . . . . . . . . . . . . . . Drone Recoveries . | . . . . . . . . . . . . . . Exploration | -11 -10 -9 -9 -8 -7 -6 -5 -5 -5 -4 -4 -3 -2 ------------- Run | Yrd Mat Mat Sto Mat Fac Fac Fac Upp Upp Fac Ext Res Res Turns Passed 5269 | 41 793 179 325 305 641 472 346 386 169 442 338 462 370 Spaces Moved 6505 | 31 530 112 227 263 1280 466 315 761 384 714 400 518 504 Core 22 | 6 . . 1 . . . . . . . 6 . 9 Treads . | . . . . . . . . . . . . . . Legs 780 | 25 530 112 113 . . . . . . . . . . Wheels . | . . . . . . . . . . . . . . Hover 200 | . . . 113 46 . . . . . . . . 41 Flight 5503 | . . . . 217 1280 466 315 761 384 714 394 518 454 Fastest Speed 23 | 50 120 120 52 29 23 23 40 43 29 23 35 37 26 Average Speed 49 | 106 120 120 87 34 30 47 42 43 42 29 54 52 40 Slowest Speed 250 | 120 120 120 250 100 49 57 111 43 49 35 100 60 80 Overloaded Moves 619 | . . . . . . 344 204 . 1 . 9 . 61 Propulsion Burnouts 1 | . . . . . . . . . . . . . 1 Robots Hopped 46 | . . . . 1 2 . 3 1 2 3 10 3 21 Cave-ins Triggered 1 | . . . . . . 1 . . . . . . . Exploration Rate (%) 30 | 4 77 12 45 25 34 13 11 77 47 13 41 10 17 Regions Visited 13 Branch Regions 4 Pre-discovered Areas 1 | . . . . . . . . . 1 . . . . Known Exits Taken 7 | . 1 1 1 1 1 1 . . . 1 . . . Unknown Exits Taken 6 | 1 . . . . . . 1 1 1 . 1 1 . Scrap Searched 4 | . . . . . . . . 3 1 . . . . Spaces Dug 137 | . . . . . 14 65 54 4 . . . . . Terrain Destroyed 464 | . 66 . 30 . 53 188 54 6 . 67 . . . Melee . | . . . . . . . . . . . . . . Projectile 6 | . . . . . . . . 6 . . . . . AOE 458 | . 66 . 30 . 53 188 54 . . 67 . . . Terrain Rammed . | . . . . . . . . . . . . . . Walls Destroyed . | . . . . . . . . . . . . . . Machines Disabled . | . . . . . . . . . . . . . . Actions | -11 -10 -9 -9 -8 -7 -6 -5 -5 -5 -4 -4 -3 -2 --------- Run | Yrd Mat Mat Sto Mat Fac Fac Fac Upp Upp Fac Ext Res Res Total 8163 | 36 637 146 288 433 1449 702 505 795 388 932 505 700 647 Wait 1144 | . 59 28 15 130 51 132 163 11 2 198 43 157 155 Move 6409 | 30 529 111 226 260 1275 464 308 758 379 707 381 511 470 Hop 36 | . . . . 1 2 . 3 1 2 3 8 3 13 Pick Up 35 | . 8 . 2 3 8 4 2 . . 5 1 2 . Fast Attach 82 | 6 4 . 3 7 15 6 4 3 2 4 7 15 6 Attach 23 | . . 2 4 . 4 2 2 1 . 3 2 2 1 Detach 6 | . . . . 1 . . 1 . . 2 . 2 . Swap 24 | . 7 . 5 2 4 1 3 . . 1 1 . . Drop 54 | . 3 . . 7 15 8 3 . 2 5 1 8 2 Fire 185 | . 27 5 33 22 44 12 16 21 1 4 . . . Melee . | . . . . . . . . . . . . . . Ram . | . . . . . . . . . . . . . . Kick . | . . . . . . . . . . . . . . Crush . | . . . . . . . . . . . . . . Escape Stasis 120 | . . . . . 31 73 . . . . 16 . . Rewire 45 | . . . . . . . . . . . 45 . . Trap . | . . . . . . . . . . . . . . Miscellaneous . | . . . . . . . . . . . . . . Route ------- -11/Scrapyard -10/Materials (discovered 4 exits: *Mat x3 / [*Min]) -9/Materials -9/Storage -8/Materials -7/Factory (discovered 4 exits: *Fac x4) -6/Factory (discovered 4 exits: *Fac x4) -5/Factory -5/Upper Caves -5/Upper Caves -4/Factory (discovered 4 exits: Upp x2 / *Ext x2) -4/Extension -3/Research -2/Research History --------- Turn | Location | Event 23 | -11/Scrapyard | Discovered new exit (range 16) 42 | -11/Scrapyard | Entered Materials 304 | -10/Materials | Build established: Mutant 425 | -10/Materials | Identified exit to Materials 542 | -10/Materials | Derelicts attacked the area 640 | -10/Materials | Discovered new exit (range 7) 835 | -10/Materials | Entered another Materials area 835 | -9/Materials | Evolved 2 slots: Propulsion x1, Utility x1 999 | -9/Materials | Discovered new exit (range 7) 1005 | -9/Materials | Identified exit to Storage 1014 | -9/Materials | Entered Storage 1150 | -9/Storage | Identified exit to Materials 1339 | -9/Storage | Entered Materials 1339 | -8/Materials | Evolved 2 slots: Propulsion x1, Utility x1 1625 | -8/Materials | Discovered new exit (range 13) 1636 | -8/Materials | Destroyed 7 combat bots 1644 | -8/Materials | Identified exit to Factory 1644 | -8/Materials | Entered Factory 1644 | -7/Factory | Evolved 2 slots: Power x1, Propulsion x1 1665 | -7/Factory | Build established: Sprinter 1985 | -7/Factory | Destroyed 8 combat bots 1989 | -7/Factory | Lost 3 parts (1u2w) 2145 | -7/Factory | Identified exit to Factory 2285 | -7/Factory | Entered another Factory area 2285 | -6/Factory | Evolved 2 slots: Propulsion x1, Utility x1 2286 | -6/Factory | Identified exit to DSF 2677 | -6/Factory | Build established: Hacker-Mutant 2682 | -6/Factory | Identified exit to Factory 2741 | -6/Factory | Crushed by falling debris 2757 | -6/Factory | Entered another Factory area 2757 | -5/Factory | Evolved 2 slots: Utility x2 2936 | -5/Factory | Repaired Broken Cld. VTOL Module 3007 | -5/Factory | Repaired Cld. VTOL Module 3088 | -5/Factory | Discovered new exit (range 3) 3103 | -5/Factory | Entered Upper Caves 3107 | -5/Upper Caves | Spotted B-75 Beast 3436 | -5/Upper Caves | Attracted the attention of an 0b10 checkpoint 3480 | -5/Upper Caves | Discovered new exit (range 15) 3489 | -5/Upper Caves | Entered another Upper Caves area 3489 | -5/Upper Caves | Discovered new exit (range 9) 3490 | -5/Upper Caves | Learned Factory stockpile data 3540 | -5/Upper Caves | Encountered a Warlord checkpoint 3605 | -5/Upper Caves | Attracted the attention of an 0b10 outpost 3658 | -5/Upper Caves | Entered Factory 3658 | -4/Factory | Evolved 2 slots: Propulsion x2 3674 | -4/Factory | Spotted B-86 Titan 3679 | -4/Factory | Lost 5 parts (1p1n2u1w) 3908 | -4/Factory | First assault squad dispatched 3947 | -4/Factory | Build established: Hacker-Sprinter 4001 | -4/Factory | Repaired Broken Cld. VTOL Module 4083 | -4/Factory | Identified exit to Upper Caves 4083 | -4/Factory | Identified exit to Extension 4100 | -4/Factory | Entered Extension 4113 | -4/Extension | Rescued a captive Derelict 4114 | -4/Extension | Rescued a captive Derelict 4126 | -4/Extension | Lost 5 parts (2p2n1u) 4133 | -4/Extension | Rescued a captive Derelict 4135 | -4/Extension | Rescued a captive Derelict 4181 | -4/Extension | Rescued a captive Derelict 4239 | -4/Extension | Rescued A7 4364 | -4/Extension | Rescued a captive Derelict 4365 | -4/Extension | Rescued a captive Derelict 4373 | -4/Extension | Build established: Hacker-Mutant 4400 | -4/Extension | Rescued a captive Derelict 4404 | -4/Extension | Spotted B-86 Titan 4422 | -4/Extension | Spotted B-86 Titan 4437 | -4/Extension | Discovered new exit (range 2) 4438 | -4/Extension | Entered Research 4438 | -3/Research | Evolved 2 slots: Power x1, Weapon x1 4466 | -3/Research | Lost 4 allies 4468 | -3/Research | Lost 9 parts (4n3u2w) 4686 | -3/Research | Repaired Adv. Sensor Array 4763 | -3/Research | Discovered new exit (range 9) 4900 | -3/Research | Entered another Research area 4900 | -2/Research | Evolved 2 slots: Propulsion x1, Utility x1 4923 | -2/Research | Found Hvy. Reflective Plating 5111 | -2/Research | Spotted B-90 Cyclops 5190 | -2/Research | Spotted B-90 Cyclops 5209 | -2/Research | Core integrity fell below 50% 5256 | -2/Research | Core integrity fell below 20% 5270 | -2/Research | Destroyed by H-88 Terminator with Heavy Machine Gun Last Messages --------------- 05202_ Slug penetrates Wall. 05206_ W-44 Eye sends out distress signal. 05215_ Cld. VTOL Module destroyed. 05215_ Cld. VTOL Module burned out. 05227_ ALERT: Suspicious intruders detected, dispatching Cutter reinforcements to area. 05230_ Acquired Hacking Suite. 05231_ K-01 Serf cleans the Particle Synthesizer. 05234_ System Shield destroyed. 05240_ Critical hit (Destroy). 05240_ Cld. VTOL Module destroyed. 05247_ K-01 Serf destroyed. 05247_ K-01 Serf collects debris. 05248_ K-01 Serf destroyed. 05249_ System Shield destroyed. 05249_ K-01 Serf cleans the Terminal. 05253_ TBNRS/E1WC GGY#QX2V5WBDF1GC2ZRM 05255_ K-01 Serf cleans the Terminal. 05270_ Penetrated by Slug. Map ----- +----------------------------------------------------+ | #???????????????????????????????????????????????? | | #???????????????????????????????????????????????? | | +???????????????????????????????????????????????? | | #???????????????????????????????????????????????? | | #???????????????????????????????????????????????? | | #???????????????????????????????????????????????? | | #???????????????????????????????????????????????? | | #???????????????????????????????????????????????? | | #???????????????????????????????????????????????? | | #???????????????????????????????????????????????? | | #???????????????????????????????????????????????? | | #???????????#######?????????????????????????????? | | #???????????# #?????????????????????????????? | | #???????????# #?????????????????????????????? | | #???????????# #######???????????????????????? | | #??????????## # #???????????????????????? | | #???###### ## # #???????????????????????? | | #??!!! # + #???????????????????????? | | #??!!! # # #???????????????????????? | | #? !!! # # #???????????????????????? | | #? ?# ## ##???????????????????????? | | # ???# ## #????????????????????????? | | # """ ""???# = ## #????????????????????????? | | + """T"????# ## #?##+###?????????????????? | | ########????########s ## #?????????????????? | | #################### @ T" #?????????????????? | | %=%= "" p p k ????????????? | | = u k #####?????????????? | | ####### #?????????????????? | | #??????## ###?????????????????? | | """ #????? #???????????????????? | | """ #??????#???????????????????? | | """ #??????????????????????????? | | #??????????????????????????? | | ########## #??????????????????????????? | | #????????? #??????????????????????????? | | !! #????????? #??????????????????????????? | | !] #????????? +??????????????????????????? | | !] #????????? #??????????????????????????? | | #????????? #??????????????????????????? | | #????????? ???????????????????????????? | | #????????? ????????????????????????????? | | ???? !!!?????????????????????????????????????????? | | ?????????????????????????????????????????????????? | | ?????????????????????????????????????????????????? | | ?????????????????????????????????????????????????? | | ?????????????????????????????????????????????????? | | ?????????????????????????????????????????????????? | | ?????????????????????????????????????????????????? | | ?????????????????????????????????????????????????? | +----------------------------------------------------+ Best States ------------- Heat Dissipation 62 Energy Generation 41 Energy Capacity 265 Matter Stores 300 Matter Capacity 300 Sight Range 16 Robot Scan Range 16 Terrain Scan Density 10 Cloak Strength 2 Power Amplification 30 Additional Mass Support 6 Armor Coverage 600 Resistance: TH 25 Propulsion Shielding 33 Evasion (%) 74 Targeting Accuracy 14 Armor Integrity Analysis 30 Matter Filtering 50 Offensive Hacking 10 Defensive Hacking 45 Item Schematics ----------------- Hover Unit | -9/Materials | Scanalyzed Robot Schematics ------------------ None Fabricated ------------ Nothing Alien Tech Used ----------------- None Achievements -------------- root@ Challenges ------------ None Game ------ Seed NeutronHelicalKinecellerator Manual? 0 Play Time 01:55:23 Cumulative 43.3 hours Start 2024.07.15 @ 23:07:30 End 2024.07.16 @ 15:15:25 Sessions 3 Manual Loads 0 Difficulty Rogue Special Mode None Game No. 27 Rogue 21 Adventurer 5 Explorer 1 Win Type - Total 1 Types 1/0/0/0/0/0/0/0/0 Lore% 28 Gallery% 44 Achievement% 39 Wizard Run 0 Options --------- Layout 1 ASCII 0 Keyboard 0 Movement Mouse Keybinds 0 Fullscreen 2 Font 32/SmallcapsGlow Map View 50x35 Zoom Use 0% Tactical HUD 1 Map Filters NONE Filters NONE Steam 1 RUN: 92bea7c0-4261-4eb5-8b4a-032c27cea0c0